fUSD/lending_fUSD_20260507
["ID","MTS","AMOUNT","RATE_DAILY","PERIOD"]
[421757846,1778112638000,-200.0,0.000137,2]
[421757845,1778112638000,-166.66,0.00013699,2]
[421757847,1778112638000,-500.0,0.000137,2]
[421757849,1778112638000,-151.0,0.000137,2]
[421757848,1778112638000,-151.0,0.000137,2]
[421757851,1778112638000,-151.0,0.000137,2]
[421757852,1778112638000,-151.0,0.000137,2]
[421757840,1778112638000,-839.13,0.00013699,2]
[421757855,1778112638000,-151.0,0.000137,2]
[421757854,1778112638000,-151.0,0.000137,2]
[421757856,1778112638000,-151.0,0.000137,2]
[421757857,1778112638000,-151.0,0.000137,2]
[421757858,1778112638000,-151.0,0.000137,2]
[421757859,1778112638000,-151.0,0.000137,2]
[421757861,1778112638000,-151.0,0.000137,2]
[421757860,1778112638000,-151.0,0.000137,2]
[421757863,1778112638000,-151.0,0.000137,2]
[421757862,1778112638000,-151.0,0.000137,2]
[421757864,1778112638000,-151.0,0.000137,2]
[421757865,1778112638000,-151.0,0.000137,2]
[421757867,1778112638000,-151.0,0.000137,2]
[421757757,1778112638000,-714.14249179,0.00011999,2]
[421757853,1778112638000,-151.0,0.000137,2]
[421757828,1778112638000,-10857.90601484,0.00013614,2]
[421757850,1778112638000,-151.0,0.000137,2]
[421757826,1778112638000,-190.58,0.00013557,2]
[421757836,1778112638000,-5234.18947457,0.00013677,2]
[421757764,1778112638000,-10857.90601484,0.00012329,2]
[421757750,1778112638000,-714.14249179,0.00011999,2]
[421757759,1778112638000,-714.14249179,0.00011999,2]
[421757781,1778112638000,-553.71320465,0.0001298,2]
[421757783,1778112638000,-250.0,0.0001298,2]
[421757785,1778112638000,-420.0,0.00013064,2]
[421757788,1778112638000,-5234.18947457,0.00013067,2]
[421757763,1778112638000,-162.0,0.00012,2]
[421757773,1778112638000,-10857.90601484,0.00012757,2]
[421757771,1778112638000,-5234.18947459,0.0001266,2]
[421757779,1778112638000,-5234.18947457,0.00012863,2]
[421757777,1778112638000,-185.62842399,0.0001276,2]
[421757791,1778112638000,-198.0,0.00013078,2]
[421757775,1778112638000,-250.0,0.0001276,2]
[421757797,1778112638000,-161.73486169,0.00013118,2]
[421757794,1778112638000,-1680.0,0.00013089,2]
[421757821,1778112638000,-5234.18947457,0.00013473,2]
[421757819,1778112638000,-150.0,0.00013407,2]
[421757804,1778112638000,-151.74680912,0.00013118,2]
[421757817,1778112638000,-428.25871131,0.00013307,2]
[421757800,1778112638000,-158.91744415,0.00013118,2]
[421757823,1778112638000,-209.39,0.00013531,2]
[421757816,1778112638000,-5234.18947457,0.0001327,2]
[421757813,1778112638000,-2348.07045581,0.000132,2]
[421757811,1778112638000,-10857.90601484,0.00013186,2]
[421757810,1778112638000,-165.23528113,0.00013118,2]
[421757808,1778112638000,-174.19344909,0.00013118,2]
[421757805,1778112638000,-182.31006729,0.00013118,2]
[421757917,1778112639000,-1000.0,0.00014321,2]
[421757910,1778112639000,-2157.14243826,0.00014248,2]
[421757912,1778112639000,-5234.18947457,0.00014287,2]
[421757909,1778112639000,-166.66,0.00014247,2]
[421757911,1778112639000,-350.0,0.00014259,2]
[421757902,1778112639000,-506.0086978,0.00014,2]
[421757901,1778112639000,-8947.61057585,0.00014,2]
[421757900,1778112639000,-250.0,0.00014,2]
[421757903,1778112639000,-10857.90601484,0.00014043,2]
[421757899,1778112639000,-12218.77486719,0.0001399,2]
[421757898,1778112639000,-166.66,0.00013973,2]
[421757896,1778112639000,-153.87,0.00013851,2]
[421757904,1778112639000,-5234.18947457,0.00014083,2]
[421757922,1778112639000,-587.0,0.00014343,2]
[421757924,1778112639000,-4570.66076372,0.0001439,2]
[421757920,1778112639000,-1000.0,0.00014321,2]
[421757913,1778112639000,-246.03294397,0.00014321,2]
[421757915,1778112639000,-1000.0,0.00014321,2]
[421757914,1778112639000,-807.4936949,0.00014321,2]
[421757918,1778112639000,-1000.0,0.00014321,2]
[421757916,1778112639000,-319.49667034,0.00014321,2]
[421757923,1778112639000,-166.66,0.00014384,2]
[421757934,1778112639000,-4483.95,0.00014504,2]
[421757935,1778112639000,-350.0,0.00014509,2]
[421757933,1778112639000,-5234.18947457,0.0001449,2]
[421757932,1778112639000,-5000.0,0.0001449,2]
[421757927,1778112639000,-349.24374519,0.00014473,2]
[421757907,1778112639000,-205.5,0.00014136,2]
[421757919,1778112639000,-1000.0,0.00014321,2]
[421757906,1778112639000,-166.66,0.0001411,2]
[421757871,1778112639000,-151.0,0.000137,2]
[421757905,1778112639000,-428.25871129,0.00014104,2]
[421757869,1778112639000,-151.0,0.000137,2]
[421757928,1778112639000,-151.0,0.00014487,2]
[421757868,1778112639000,-151.0,0.000137,2]
[421757870,1778112639000,-151.0,0.000137,2]
[421757873,1778112639000,-151.0,0.000137,2]
[421757877,1778112639000,-151.0,0.000137,2]
[421757876,1778112639000,-151.0,0.000137,2]
[421757875,1778112639000,-151.0,0.000137,2]
[421757872,1778112639000,-151.0,0.000137,2]
[421757874,1778112639000,-151.0,0.000137,2]
[421757879,1778112639000,-2080.17592889,0.000137,2]
[421757880,1778112639000,-196811.99,0.00013708,2]
[421757878,1778112639000,-151.0,0.000137,2]
[421757881,1778112639000,-501.10461545,0.00013773,2]
[421757882,1778112639000,-500.0,0.00013773,2]
[421757883,1778112639000,-501.42497213,0.00013773,2]
[421757885,1778112639000,-500.0,0.00013773,2]
[421757888,1778112639000,-500.0,0.00013773,2]
[421757886,1778112639000,-500.0,0.00013773,2]
[421757887,1778112639000,-500.0,0.00013773,2]
[421757889,1778112639000,-500.0,0.00013773,2]
[421757893,1778112639000,-500.0,0.00013773,2]
[421757891,1778112639000,-500.0,0.00013773,2]
[421757892,1778112639000,-500.0,0.00013773,2]
[421757894,1778112639000,-2000.0,0.00013776,2]
[421757884,1778112639000,-160.86224571,0.00013773,2]
[421757895,1778112639000,-166.66,0.00013836,2]
[421757890,1778112639000,-500.45374323,0.00013773,2]
[421757897,1778112639000,-5234.18947457,0.0001388,2]
[421757908,1778112639000,-200.0,0.00014169,2]
[421757929,1778112639000,-12588.78980272,0.00014489,2]
[421757943,1778112639000,-1070.57902925,0.00014589,5]
[421757930,1778112639000,-98925.595,0.0001449,2]
[421757971,1778112639000,-1000.0,0.00014589,2]
[421757969,1778112639000,-1000.0,0.00014589,2]
[421757963,1778112639000,-1000.0,0.00014589,2]
[421757973,1778112639000,-1000.0,0.00014589,2]
[421757975,1778112639000,-1000.0,0.00014589,2]
[421757974,1778112639000,-1000.0,0.00014589,2]
[421757976,1778112639000,-1000.0,0.00014589,2]
[421757978,1778112639000,-1000.0,0.00014589,2]
[421757987,1778112639000,-500.0,0.00014589,2]
[421757986,1778112639000,-500.0,0.00014589,2]
[421757988,1778112639000,-500.0,0.00014589,2]
[421757990,1778112639000,-500.0,0.00014589,2]
[421757925,1778112639000,-2351.0,0.00014398,2]
[421757968,1778112639000,-1000.0,0.00014589,2]
[421757983,1778112639000,-500.0,0.00014589,2]
[421757979,1778112639000,-1000.0,0.00014589,2]
[421757984,1778112639000,-500.0,0.00014589,2]
[421757980,1778112639000,-1000.0,0.00014589,2]
[421757985,1778112639000,-500.0,0.00014589,2]
[421757981,1778112639000,-1000.0,0.00014589,2]
[421757977,1778112639000,-1000.0,0.00014589,2]
[421757991,1778112639000,-500.0,0.00014589,2]
[421757994,1778112639000,-500.0,0.00014589,2]
[421757993,1778112639000,-500.0,0.00014589,2]
[421757992,1778112639000,-500.0,0.00014589,2]
[421757995,1778112639000,-500.0,0.00014589,2]
[421757997,1778112639000,-500.0,0.00014589,2]
[421757996,1778112639000,-500.0,0.00014589,2]
[421757982,1778112639000,-387.51207106,0.00014589,2]
[421757964,1778112639000,-1000.0,0.00014589,2]
[421757989,1778112639000,-500.0,0.00014589,2]
[421757966,1778112639000,-1000.0,0.00014589,2]
[421757962,1778112639000,-1000.0,0.00014589,2]
[421757931,1778112639000,-4927.4593,0.0001449,2]
[421757926,1778112639000,-10857.90601484,0.00014471,2]
[421757938,1778112639000,-385.9700688,0.0001458,2]
[421757936,1778112639000,-260.0,0.00014575,2]
[421757937,1778112639000,-385.9700688,0.0001458,2]
[421757942,1778112639000,-200.97456132,0.00014589,5]
[421757941,1778112639000,-666.0,0.00014589,2]
[421757939,1778112639000,-156.073,0.00014588,2]
[421757947,1778112639000,-500.0,0.00014589,2]
[421757946,1778112639000,-1070.57902924,0.00014589,5]
[421757944,1778112639000,-1070.57902925,0.00014589,5]
[421757945,1778112639000,-200.97456133,0.00014589,5]
[421757949,1778112639000,-500.0,0.00014589,2]
[421757940,1778112639000,-300.0,0.00014589,2]
[421757960,1778112639000,-1000.0,0.00014589,2]
[421757948,1778112639000,-500.0,0.00014589,2]
[421757967,1778112639000,-1000.0,0.00014589,2]
[421757957,1778112639000,-500.0,0.00014589,2]
[421757958,1778112639000,-1000.0,0.00014589,2]
[421757951,1778112639000,-500.0,0.00014589,2]
[421757954,1778112639000,-500.0,0.00014589,2]
[421757959,1778112639000,-1000.0,0.00014589,2]
[421757965,1778112639000,-1000.0,0.00014589,2]
[421757956,1778112639000,-500.0,0.00014589,2]
[421757950,1778112639000,-500.0,0.00014589,2]
[421757955,1778112639000,-500.0,0.00014589,2]
[421757952,1778112639000,-500.0,0.00014589,2]
[421757961,1778112639000,-1000.0,0.00014589,2]
[421757953,1778112639000,-500.0,0.00014589,2]
[421758038,1778112640000,-500.0,0.00014589,2]
[421758040,1778112640000,-500.0,0.00014589,2]
[421758042,1778112640000,-500.0,0.00014589,2]
[421758036,1778112640000,-500.0,0.00014589,2]
[421758037,1778112640000,-500.0,0.00014589,2]
[421758039,1778112640000,-500.0,0.00014589,2]
[421758034,1778112640000,-500.0,0.00014589,2]
[421758032,1778112640000,-500.0,0.00014589,2]
[421758031,1778112640000,-500.0,0.00014589,2]
[421758033,1778112640000,-500.0,0.00014589,2]
[421758026,1778112640000,-500.0,0.00014589,2]
[421758061,1778112640000,-500.0,0.00014589,2]
[421758035,1778112640000,-500.0,0.00014589,2]
[421758041,1778112640000,-500.0,0.00014589,2]
[421758064,1778112640000,-500.0,0.00014589,2]
[421758044,1778112640000,-500.0,0.00014589,2]
[421758043,1778112640000,-500.0,0.00014589,2]
[421758046,1778112640000,-500.0,0.00014589,2]
[421758045,1778112640000,-500.0,0.00014589,2]
[421758048,1778112640000,-346.95894298,0.00014589,2]
[421758047,1778112640000,-500.0,0.00014589,2]
[421758049,1778112640000,-500.0,0.00014589,2]
[421758051,1778112640000,-500.0,0.00014589,2]
[421758050,1778112640000,-500.0,0.00014589,2]
[421758052,1778112640000,-500.0,0.00014589,2]
[421758057,1778112640000,-500.0,0.00014589,2]
[421758053,1778112640000,-500.0,0.00014589,2]
[421758058,1778112640000,-500.0,0.00014589,2]
[421758059,1778112640000,-500.0,0.00014589,2]
[421758027,1778112640000,-500.0,0.00014589,2]
[421758025,1778112640000,-500.0,0.00014589,2]
[421758095,1778112640000,-569.93,0.00014589,2]
[421758024,1778112640000,-500.0,0.00014589,2]
[421758062,1778112640000,-500.0,0.00014589,2]
[421758002,1778112640000,-500.0,0.00014589,2]
[421758003,1778112640000,-500.0,0.00014589,2]
[421758000,1778112640000,-500.0,0.00014589,2]
[421757999,1778112640000,-500.0,0.00014589,2]
[421757998,1778112640000,-500.0,0.00014589,2]
[421758001,1778112640000,-500.0,0.00014589,2]
[421758005,1778112640000,-500.0,0.00014589,2]
[421758015,1778112640000,-500.0,0.00014589,2]
[421758004,1778112640000,-500.0,0.00014589,2]
[421758016,1778112640000,-500.0,0.00014589,2]
[421758008,1778112640000,-500.0,0.00014589,2]
[421758013,1778112640000,-500.0,0.00014589,2]
[421758010,1778112640000,-500.0,0.00014589,2]
[421758011,1778112640000,-500.0,0.00014589,2]
[421758009,1778112640000,-500.0,0.00014589,2]
[421758007,1778112640000,-500.0,0.00014589,2]
[421758017,1778112640000,-500.0,0.00014589,2]
[421758014,1778112640000,-500.0,0.00014589,2]
[421758012,1778112640000,-500.0,0.00014589,2]
[421758006,1778112640000,-500.0,0.00014589,2]
[421758018,1778112640000,-500.0,0.00014589,2]
[421758020,1778112640000,-500.0,0.00014589,2]
[421758021,1778112640000,-500.0,0.00014589,2]
[421758019,1778112640000,-500.0,0.00014589,2]
[421758022,1778112640000,-500.0,0.00014589,2]
[421758030,1778112640000,-372.00965941,0.00014589,2]
[421758029,1778112640000,-500.0,0.00014589,2]
[421758023,1778112640000,-500.0,0.00014589,2]
[421758028,1778112640000,-500.0,0.00014589,2]
[421758054,1778112640000,-500.0,0.00014589,2]
[421758109,1778112640000,-500.0,0.00014589,2]
[421758063,1778112640000,-500.0,0.00014589,2]
[421758103,1778112640000,-500.0,0.00014589,2]
[421758106,1778112640000,-500.0,0.00014589,2]
[421758097,1778112640000,-569.93,0.00014589,2]
[421758099,1778112640000,-500.0,0.00014589,2]
[421758105,1778112640000,-507.547478,0.00014589,2]
[421758096,1778112640000,-569.93,0.00014589,2]
[421758098,1778112640000,-500.0,0.00014589,2]
[421758100,1778112640000,-500.0,0.00014589,2]
[421758101,1778112640000,-500.0,0.00014589,2]
[421758102,1778112640000,-500.0,0.00014589,2]
[421758108,1778112640000,-500.0,0.00014589,2]
[421758118,1778112640000,-500.0,0.00014589,2]
[421758120,1778112640000,-500.0,0.00014589,2]
[421758112,1778112640000,-500.0,0.00014589,2]
[421758113,1778112640000,-500.0,0.00014589,2]
[421758110,1778112640000,-500.0,0.00014589,2]
[421758111,1778112640000,-500.0,0.00014589,2]
[421758119,1778112640000,-500.0,0.00014589,2]
[421758107,1778112640000,-500.0,0.00014589,2]
[421758115,1778112640000,-500.0,0.00014589,2]
[421758116,1778112640000,-500.0,0.00014589,2]
[421758117,1778112640000,-500.0,0.00014589,2]
[421758114,1778112640000,-500.0,0.00014589,2]
[421758125,1778112640000,-500.0,0.00014589,2]
[421758123,1778112640000,-176.0,0.00014589,2]
[421758124,1778112640000,-500.0,0.00014589,2]
[421758122,1778112640000,-176.0,0.00014589,2]
[421758126,1778112640000,-500.0,0.00014589,2]
[421758056,1778112640000,-500.0,0.00014589,2]
[421758104,1778112640000,-500.0,0.00014589,2]
[421758094,1778112640000,-569.93,0.00014589,2]
[421758121,1778112640000,-500.0,0.00014589,2]
[421758086,1778112640000,-569.93,0.00014589,2]
[421758089,1778112640000,-569.93,0.00014589,2]
[421758060,1778112640000,-500.0,0.00014589,2]
[421758055,1778112640000,-500.0,0.00014589,2]
[421758065,1778112640000,-500.0,0.00014589,2]
[421758067,1778112640000,-500.0,0.00014589,2]
[421758076,1778112640000,-500.0,0.00014589,2]
[421758071,1778112640000,-500.0,0.00014589,2]
[421758073,1778112640000,-500.0,0.00014589,2]
[421758068,1778112640000,-500.0,0.00014589,2]
[421758070,1778112640000,-199.75341924,0.00014589,2]
[421758078,1778112640000,-500.0,0.00014589,2]
[421758077,1778112640000,-500.0,0.00014589,2]
[421758079,1778112640000,-500.0,0.00014589,2]
[421758074,1778112640000,-500.0,0.00014589,2]
[421758066,1778112640000,-152.30012021,0.00014589,2]
[421758069,1778112640000,-500.0,0.00014589,2]
[421758075,1778112640000,-500.0,0.00014589,2]
[421758087,1778112640000,-569.93,0.00014589,2]
[421758084,1778112640000,-569.93,0.00014589,2]
[421758088,1778112640000,-569.93,0.00014589,2]
[421758082,1778112640000,-569.93,0.00014589,2]
[421758085,1778112640000,-569.93,0.00014589,2]
[421758090,1778112640000,-569.93,0.00014589,2]
[421758080,1778112640000,-500.0,0.00014589,2]
[421758092,1778112640000,-569.93,0.00014589,2]
[421758093,1778112640000,-569.93,0.00014589,2]
[421758091,1778112640000,-569.93,0.00014589,2]
[421758081,1778112640000,-518.42529008,0.00014589,2]
[421758083,1778112640000,-569.93,0.00014589,2]
[421758072,1778112640000,-500.0,0.00014589,2]
[421758156,1778112641000,-151.0,0.0001459,2]
[421758164,1778112641000,-151.0,0.0001459,2]
[421758163,1778112641000,-151.0,0.0001459,2]
[421758161,1778112641000,-306.082611,0.0001459,2]
[421758162,1778112641000,-306.082611,0.0001459,2]
[421758158,1778112641000,-306.082611,0.0001459,2]
[421758157,1778112641000,-306.082611,0.0001459,2]
[421758151,1778112641000,-506.178799,0.0001459,2]
[421758147,1778112641000,-506.178799,0.0001459,2]
[421758159,1778112641000,-306.082611,0.0001459,2]
[421758165,1778112641000,-151.0,0.0001459,2]
[421758171,1778112641000,-303.914046,0.0001459,2]
[421758167,1778112641000,-303.914046,0.0001459,2]
[421758168,1778112641000,-303.914046,0.0001459,2]
[421758170,1778112641000,-303.914046,0.0001459,2]
[421758169,1778112641000,-303.914046,0.0001459,2]
[421758172,1778112641000,-303.914046,0.0001459,2]
[421758173,1778112641000,-303.914046,0.0001459,2]
[421758174,1778112641000,-303.914046,0.0001459,2]
[421758178,1778112641000,-1067.04024357,0.00014622,2]
[421758150,1778112641000,-506.178799,0.0001459,2]
[421758177,1778112641000,-153.87,0.00014613,2]
[421758166,1778112641000,-151.0,0.0001459,2]
[421758160,1778112641000,-306.082611,0.0001459,2]
[421758136,1778112641000,-500.0,0.00014589,2]
[421758155,1778112641000,-151.0,0.0001459,2]
[421758180,1778112641000,-6400.0,0.000147,5]
[421758131,1778112641000,-500.0,0.00014589,2]
[421758127,1778112641000,-500.0,0.00014589,2]
[421758133,1778112641000,-500.0,0.00014589,2]
[421758128,1778112641000,-500.0,0.00014589,2]
[421758130,1778112641000,-500.0,0.00014589,2]
[421758129,1778112641000,-500.0,0.00014589,2]
[421758135,1778112641000,-500.0,0.00014589,2]
[421758146,1778112641000,-506.178799,0.0001459,2]
[421758134,1778112641000,-500.0,0.00014589,2]
[421758137,1778112641000,-500.0,0.00014589,2]
[421758138,1778112641000,-500.0,0.00014589,2]
[421758142,1778112641000,-2000.0,0.0001459,2]
[421758141,1778112641000,-33135.002,0.0001459,2]
[421758145,1778112641000,-506.178799,0.0001459,2]
[421758143,1778112641000,-1500000.0,0.0001459,2]
[421758144,1778112641000,-151.0,0.0001459,2]
[421758140,1778112641000,-1747.0,0.0001459,5]
[421758139,1778112641000,-614.24,0.00014589,2]
[421758153,1778112641000,-306.082611,0.0001459,2]
[421758152,1778112641000,-506.178799,0.0001459,2]
[421758154,1778112641000,-306.082611,0.0001459,2]
[421758148,1778112641000,-506.178799,0.0001459,2]
[421758149,1778112641000,-506.178799,0.0001459,2]
[421758175,1778112641000,-176.0,0.0001459,2]
[421758132,1778112641000,-500.0,0.00014589,2]
[421758176,1778112641000,-643.05,0.00014603,2]
[421758208,1778112641000,-500.0,0.00014999,2]
[421758210,1778112641000,-500.0,0.00014999,2]
[421758211,1778112641000,-500.0,0.00014999,2]
[421758212,1778112641000,-500.0,0.00014999,2]
[421758213,1778112641000,-500.0,0.00014999,2]
[421758215,1778112641000,-512.67718847,0.00014999,2]
[421758214,1778112641000,-500.0,0.00014999,2]
[421758218,1778112641000,-569.93,0.00014999,2]
[421758216,1778112641000,-569.93,0.00014999,2]
[421758217,1778112641000,-569.93,0.00014999,2]
[421758219,1778112641000,-569.93,0.00014999,2]
[421758209,1778112641000,-500.0,0.00014999,2]
[421758220,1778112641000,-569.93,0.00014999,2]
[421758222,1778112641000,-570.05775141,0.00014999,2]
[421758229,1778112641000,-3678838.27086528,0.00015,2]
[421758228,1778112641000,-200.0,0.00015,2]
[421758221,1778112641000,-569.93,0.00014999,2]
[421758227,1778112641000,-151.0,0.00015,2]
[421758223,1778112641000,-536.16,0.00014999,2]
[421758225,1778112641000,-1489189.33622019,0.00015,2]
[421758230,1778112641000,-5567680.02561676,0.00015,2]
[421758224,1778112641000,-300.0,0.00014999,2]
[421758179,1778112641000,-1067.04024357,0.00014678,2]
[421758205,1778112641000,-60065.49906758,0.00014989,2]
[421758204,1778112641000,-166483.3763603,0.00014947,2]
[421758226,1778112641000,-200.0,0.00015,2]
[421758198,1778112641000,-10857.90601484,0.000149,2]
[421758181,1778112641000,-300.483804,0.000147,2]
[421758182,1778112641000,-181.376504,0.000147,2]
[421758184,1778112641000,-1067.04024357,0.00014789,2]
[421758186,1778112641000,-1200.0,0.000148,5]
[421758193,1778112641000,-1500.0,0.00014868,2]
[421758187,1778112641000,-350.0,0.00014802,2]
[421758189,1778112641000,-1500.0,0.00014868,2]
[421758185,1778112641000,-2236.95670848,0.00014796,2]
[421758192,1778112641000,-1500.0,0.00014868,2]
[421758188,1778112641000,-1067.04024357,0.00014844,2]
[421758194,1778112641000,-10000.0,0.000149,2]
[421758191,1778112641000,-1500.0,0.00014868,2]
[421758183,1778112641000,-1067.04024357,0.00014733,2]
[421758190,1778112641000,-1500.0,0.00014868,2]
[421758197,1778112641000,-1200.0,0.000149,5]
[421758200,1778112641000,-500.0,0.00014946,2]
[421758199,1778112641000,-500.0,0.00014946,2]
[421758202,1778112641000,-500.0,0.00014946,2]
[421758203,1778112641000,-300.0,0.00014946,2]
[421758195,1778112641000,-428.25871129,0.000149,2]
[421758207,1778112641000,-500.0,0.00014999,2]
[421758206,1778112641000,-152.0,0.00014995,7]
[421758196,1778112641000,-1067.04024357,0.000149,2]
[421758201,1778112641000,-569.93,0.00014946,2]
[421758231,1778112642000,-1170.75638054,0.00015,2]
[421758241,1778112642000,-7392.4542866,0.00015,2]
[421758237,1778112642000,-8947.21879473,0.00015,2]
[421758238,1778112642000,-8943.78386462,0.00015,2]
[421758239,1778112642000,-9077.54866152,0.00015,2]
[421758236,1778112642000,-8868.51602489,0.00015,2]
[421758234,1778112642000,-1099.0,0.00015,2]
[421758235,1778112642000,-511.95657192,0.00015,2]
[421758233,1778112642000,-1316.30482803,0.00015,2]
[421758232,1778112642000,-499.0,0.00015,2]
[421758240,1778112642000,-27927.91751525,0.00015,2]
[421758253,1778112643000,-193.716786,0.0001459,2]
[421758255,1778112643000,-193.716786,0.0001459,2]
[421758256,1778112643000,-856.30485892,0.00015,2]
[421758270,1778112645000,-6486.69601608,0.00015,2]
[421758269,1778112645000,-26043.30398392,0.00015,2]
[421758264,1778112645000,-5785.00505286,0.00015,2]
[421758263,1778112645000,-34094.01730636,0.0001499,2]
[421758262,1778112645000,-193.716786,0.0001459,2]
[421758266,1778112645000,-130791.19355146,0.00015,2]
[421758267,1778112645000,-793.1136,0.00015,2]
[421758268,1778112645000,-4459.57730191,0.00015,2]
[421758265,1778112645000,-6373.21764588,0.00015,2]
[421758261,1778112645000,-193.716786,0.0001459,2]
[421758271,1778112646000,-4227.54899096,0.00015,2]
[421758275,1778112885000,38283.0,0.0003013,120]
[421758276,1778113114000,-6068.45957696,0.00013597,2]
[421758277,1778113140000,4719.319,0.00030137,120]
[421758278,1778113157000,476.3,0.00030137,120]
[421758280,1778113158000,1332.48,7.187e-05,2]
[421758279,1778113158000,1332.48,6.827e-05,2]
[421758281,1778113158000,1332.48,7.546e-05,2]
[421758283,1778113158000,1332.48,8.265e-05,2]
[421758282,1778113158000,1332.48,7.905e-05,2]
[421758289,1778113159000,1202.37360239,0.00010061,2]
[421758288,1778113159000,1332.48,9.702e-05,2]
[421758287,1778113159000,659.83,9.343e-05,2]
[421758286,1778113159000,672.65,9.343e-05,2]
[421758285,1778113159000,1332.48,8.983e-05,2]
[421758284,1778113159000,1332.48,8.624e-05,2]
[421758290,1778113160000,130.10639761,0.00010061,2]
[421758291,1778113160000,1332.48,0.00010421,2]
[421758298,1778113717000,1101.0,0.0003013,120]
[421758304,1778113831000,-300.0,0.00010779,2]
[421758303,1778113831000,-1200.0,0.00010779,2]
[421758305,1778113831000,-151.0,0.0001078,2]
[421758306,1778113831000,-151.0,0.0001078,2]
[421758313,1778113831000,-151.0,0.0001078,2]
[421758308,1778113831000,-151.0,0.0001078,2]
[421758310,1778113831000,-151.0,0.0001078,2]
[421758307,1778113831000,-151.0,0.0001078,2]
[421758312,1778113831000,-151.0,0.0001078,2]
[421758319,1778113831000,-151.0,0.0001078,2]
[421758315,1778113831000,-161.90805134,0.0001078,2]
[421758318,1778113831000,-151.0,0.0001078,2]
[421758309,1778113831000,-151.0,0.0001078,2]
[421758316,1778113831000,-151.0,0.0001078,2]
[421758314,1778113831000,-151.0,0.0001078,2]
[421758311,1778113831000,-151.0,0.0001078,2]
[421758317,1778113831000,-151.0,0.0001078,2]
[421758331,1778113832000,-420.0,0.00011848,2]
[421758341,1778113832000,-197.43,0.00012886,2]
[421758339,1778113832000,-1332.48,0.00012577,2]
[421758336,1778113832000,-2236.95670848,0.00011876,2]
[421758338,1778113832000,-2319.72410669,0.00012424,2]
[421758337,1778113832000,-1332.48,0.00012217,2]
[421758344,1778113832000,-2405.55389864,0.00012972,2]
[421758354,1778113832000,-246.1,0.00013156,2]
[421758342,1778113832000,-1332.48,0.00012936,2]
[421758358,1778113832000,-2494.55939289,0.0001352,2]
[421758360,1778113832000,-1332.48,0.00013655,2]
[421758346,1778113832000,-587.0,0.00013022,2]
[421758340,1778113832000,-177.39,0.00012741,2]
[421758356,1778113832000,-1332.48,0.00013296,2]
[421758332,1778113832000,-1680.0,0.00011857,2]
[421758333,1778113832000,-250.0,0.00011858,2]
[421758348,1778113832000,-2351.0,0.00013043,2]
[421758330,1778113832000,-1332.48,0.00011499,2]
[421758327,1778113832000,-979.50807985,0.0001078,2]
[421758329,1778113832000,-2157.14243826,0.00011328,2]
[421758328,1778113832000,-1332.48,0.00011139,2]
[421758325,1778113832000,-250.0,0.0001078,2]
[421758324,1778113832000,-45.76304719,0.0001078,2]
[421758326,1778113832000,-352.97192015,0.0001078,2]
[421758323,1778113832000,-2034.4128817,0.0001078,2]